[Event "Titled Tuesday Blitz February 14 Early 2023"]
[White "Dzhaparov, Medet"]
[Black "Derjabin, Ilja"]
[WhiteFideId "13803689"]
[BlackFideId "14104768"]
[WhiteElo "1578"]
[BlackElo "2333"]
[Result "0-1"]
[Round "08"]
[TimeControl "180+2"]
[Date "2023.02.14"]
[WhiteClock "0:02:18"]
[BlackClock "0:01:42"]

1. e4 {[%clk 0:03:00]}  c5 {[%clk 0:02:59]} 2. Nf3 {[%clk 0:03:00]}  d6 {[%clk 0:02:59]} 3. d4 {[%clk 0:03:01]}  cxd4 {[%clk 0:03:00]} 4. Nxd4 {[%clk 0:03:02]}  Nf6 {[%clk 0:03:00]} 5. Nc3 {[%clk 0:03:02]}  a6 {[%clk 0:03:01]} 6. h3 {[%clk 0:03:02]}  e5 {[%clk 0:03:01]} 7. Nb3 {[%clk 0:03:01]}  Be7 {[%clk 0:03:01]} 8. g4 {[%clk 0:03:00]}  b5 {[%clk 0:02:58]} 9. Bg2 {[%clk 0:02:56]}  b4 {[%clk 0:02:57]} 10. Nd5 {[%clk 0:02:56]}  O-O {[%clk 0:02:55]} 11. Bd2 {[%clk 0:02:54]}  a5 {[%clk 0:02:54]} 12. Be3 {[%clk 0:02:51]}  Nxd5 {[%clk 0:02:50]} 13. exd5 {[%clk 0:02:34]}  f5 {[%clk 0:02:32]} 14. gxf5 {[%clk 0:02:31]}  Bxf5 {[%clk 0:02:26]} 15. Qd2 {[%clk 0:02:30]}  a4 {[%clk 0:02:18]} 16. Nc1 {[%clk 0:02:28]}  Na6 {[%clk 0:02:18]} 17. Nd3 {[%clk 0:02:27]}  b3 {[%clk 0:01:52]} 18. axb3 {[%clk 0:02:17]}  axb3 {[%clk 0:01:45]} 19. cxb3 {[%clk 0:02:17]}  Bxd3 {[%clk 0:01:42]} 20. Qxd3 {[%clk 0:02:18]}  Nb4 {[%clk 0:01:42]} 0-1


[Site "https://www.chess.com"]

[Event "Titled Tuesday Blitz February 14 Early 2023"]
[White "Buchenau, Frank"]
[Black "Baskakov, Egor"]
[WhiteFideId "4604350"]
[BlackFideId "24197866"]
[WhiteElo "2222"]
[BlackElo "2215"]
[Result "0-1"]
[Round "08"]
[TimeControl "180+2"]
[Date "2023.02.14"]
[WhiteClock "0:00:01"]
[BlackClock "0:02:02"]

1. e4 {[%clk 0:02:36]}  c5 {[%clk 0:02:59]} 2. Nf3 {[%clk 0:02:35]}  Nf6 {[%clk 0:02:59]} 3. e5 {[%clk 0:02:34]}  Nd5 {[%clk 0:03:00]} 4. Nc3 {[%clk 0:02:34]}  e6 {[%clk 0:03:00]} 5. Ne4 {[%clk 0:02:33]}  Nc6 {[%clk 0:03:00]} 6. c4 {[%clk 0:02:32]}  f5 {[%clk 0:03:00]} 7. Nc3 {[%clk 0:02:08]}  Nde7 {[%clk 0:03:00]} 8. d4 {[%clk 0:01:31]}  cxd4 {[%clk 0:03:01]} 9. Nb5 {[%clk 0:01:29]}  Ng6 {[%clk 0:03:00]} 10. Nd6+ {[%clk 0:01:07]}  Bxd6 {[%clk 0:02:58]} 11. exd6 {[%clk 0:01:08]}  e5 {[%clk 0:02:56]} 12. Bg5 {[%clk 0:00:35]}  Qa5+ {[%clk 0:02:54]} 13. Qd2 {[%clk 0:00:33]}  Qc5 {[%clk 0:02:53]} 14. O-O-O {[%clk 0:00:22]}  Qxd6 {[%clk 0:02:44]} 15. h4 {[%clk 0:00:19]}  h6 {[%clk 0:02:41]} 16. Be3 {[%clk 0:00:13]}  Qf6 {[%clk 0:02:36]} 17. Bg5 {[%clk 0:00:09]}  hxg5 {[%clk 0:02:35]} 18. hxg5 {[%clk 0:00:09]}  Qd6 {[%clk 0:02:34]} 19. Rxh8+ {[%clk 0:00:09]}  Nxh8 {[%clk 0:02:35]} 20. Bd3 {[%clk 0:00:06]}  e4 {[%clk 0:02:35]} 21. Rh1 {[%clk 0:00:04]}  Ng6 {[%clk 0:02:34]} 22. Bc2 {[%clk 0:00:03]}  d3 {[%clk 0:02:33]} 23. Bb3 {[%clk 0:00:03]}  b6 {[%clk 0:02:28]} 24. Nh4 {[%clk 0:00:01]}  Nxh4 {[%clk 0:02:23]} 25. Rxh4 {[%clk 0:00:02]}  Bb7 {[%clk 0:02:19]} 26. Rh8+ {[%clk 0:00:02]}  Ke7 {[%clk 0:02:20]} 27. Rh7 {[%clk 0:00:02]}  Rg8 {[%clk 0:02:19]} 28. c5 {[%clk 0:00:01]}  Qxc5+ {[%clk 0:02:19]} 29. Kb1 {[%clk 0:00:02]}  d5 {[%clk 0:02:19]} 30. Qf4 {[%clk 0:00:01]}  Nd4 {[%clk 0:02:06]} 31. Qe5+ {[%clk 0:00:01]}  Ne6 {[%clk 0:02:06]} 32. Qxf5 {[%clk 0:00:01]}  d2 {[%clk 0:02:02]} 0-1


[Site "https://www.chess.com"]

[Event "Titled Tuesday Blitz February 14 Early 2023"]
[White "Sourath Biswas"]
[Black "Forgacs, Attila Jr."]
[WhiteFideId "35091484"]
[BlackFideId "773654"]
[WhiteElo "2281"]
[BlackElo "2264"]
[Result "1/2-1/2"]
[Round "08"]
[TimeControl "180+2"]
[Date "2023.02.14"]
[WhiteClock "0:00:10"]
[BlackClock "0:00:05"]

1. d4 {[%clk 0:02:57]}  Nf6 {[%clk 0:02:59]} 2. Bf4 {[%clk 0:02:57]}  g6 {[%clk 0:02:59]} 3. Nc3 {[%clk 0:02:57]}  d5 {[%clk 0:02:59]} 4. e3 {[%clk 0:02:58]}  Bg7 {[%clk 0:03:00]} 5. h4 {[%clk 0:02:58]}  h5 {[%clk 0:03:00]} 6. Nf3 {[%clk 0:02:58]}  O-O {[%clk 0:03:00]} 7. Be2 {[%clk 0:02:59]}  c5 {[%clk 0:03:00]} 8. dxc5 {[%clk 0:03:00]}  Qa5 {[%clk 0:02:59]} 9. Nd2 {[%clk 0:03:00]}  Qxc5 {[%clk 0:02:54]} 10. O-O {[%clk 0:03:01]}  Bf5 {[%clk 0:02:43]} 11. Nb3 {[%clk 0:02:59]}  Qc8 {[%clk 0:02:26]} 12. Nd4 {[%clk 0:02:52]}  Nc6 {[%clk 0:02:18]} 13. Nxf5 {[%clk 0:02:52]}  Qxf5 {[%clk 0:02:19]} 14. Bg3 {[%clk 0:02:32]}  Rfd8 {[%clk 0:02:11]} 15. Bd3 {[%clk 0:02:32]}  Qe6 {[%clk 0:02:09]} 16. Nb5 {[%clk 0:02:32]}  Rac8 {[%clk 0:02:00]} 17. Nd4 {[%clk 0:02:28]}  Nxd4 {[%clk 0:01:59]} 18. exd4 {[%clk 0:02:29]}  Ne4 {[%clk 0:01:57]} 19. Re1 {[%clk 0:02:28]}  Qc6 {[%clk 0:01:49]} 20. c3 {[%clk 0:02:24]}  Nxg3 {[%clk 0:01:47]} 21. fxg3 {[%clk 0:02:25]}  Qd6 {[%clk 0:01:46]} 22. Qf3 {[%clk 0:02:25]}  a6 {[%clk 0:01:41]} 23. Re2 {[%clk 0:02:21]}  b5 {[%clk 0:01:39]} 24. Rf1 {[%clk 0:02:21]}  Rf8 {[%clk 0:01:37]} 25. g4 {[%clk 0:02:21]}  hxg4 {[%clk 0:01:32]} 26. Qxg4 {[%clk 0:02:22]}  b4 {[%clk 0:01:25]} 27. h5 {[%clk 0:02:15]}  bxc3 {[%clk 0:01:12]} 28. hxg6 {[%clk 0:02:16]}  fxg6 {[%clk 0:01:07]} 29. Rxf8+ {[%clk 0:02:15]}  Rxf8 {[%clk 0:01:05]} 30. bxc3 {[%clk 0:02:16]}  Rf6 {[%clk 0:00:50]} 31. Qc8+ {[%clk 0:02:15]}  Kh7 {[%clk 0:00:49]} 32. Re5 {[%clk 0:02:00]}  Qa3 {[%clk 0:00:16]} 33. Kh2 {[%clk 0:01:22]}  Qc1 {[%clk 0:00:16]} 34. Qh3+ {[%clk 0:01:22]}  Kg8 {[%clk 0:00:13]} 35. Rxe7 {[%clk 0:00:47]}  Qf4+ {[%clk 0:00:12]} 36. Qg3 {[%clk 0:00:46]}  Qh6+ {[%clk 0:00:11]} 37. Kg1 {[%clk 0:00:23]}  Qc1+ {[%clk 0:00:12]} 38. Re1 {[%clk 0:00:23]}  Qxc3 {[%clk 0:00:12]} 39. Qe3 {[%clk 0:00:22]}  Qc6 {[%clk 0:00:08]} 40. Qe7 {[%clk 0:00:17]}  Rf7 {[%clk 0:00:06]} 41. Qe8+ {[%clk 0:00:17]}  Qxe8 {[%clk 0:00:06]} 42. Rxe8+ {[%clk 0:00:18]}  Rf8 {[%clk 0:00:06]} 43. Re6 {[%clk 0:00:17]}  Rf6 {[%clk 0:00:06]} 44. Re7 {[%clk 0:00:16]}  Rf7 {[%clk 0:00:05]} 45. Re8+ {[%clk 0:00:15]}  Rf8 {[%clk 0:00:06]} 46. Re6 {[%clk 0:00:15]}  Bxd4+ {[%clk 0:00:06]} 47. Kh2 {[%clk 0:00:15]}  Rf6 {[%clk 0:00:05]} 48. Re7 {[%clk 0:00:15]}  Rf7 {[%clk 0:00:04]} 49. Re6 {[%clk 0:00:14]}  Rf6 {[%clk 0:00:05]} 50. Re7 {[%clk 0:00:14]}  Rf7 {[%clk 0:00:05]} 51. Re6 {[%clk 0:00:10]}  Rf6 {[%clk 0:00:05]} 1/2-1/2


[Site "https://www.chess.com"]

[Event "Titled Tuesday Blitz February 14 Early 2023"]
[White "Cori T., Deysi"]
[Black "Mirzanurov, Bulat"]
[WhiteFideId "3801934"]
[BlackFideId "4184521"]
[WhiteElo "2362"]
[BlackElo "2232"]
[Result "1-0"]
[Round "08"]
[TimeControl "180+2"]
[Date "2023.02.14"]
[WhiteClock "0:02:07"]
[BlackClock "0:01:00"]

1. e4 {[%clk 0:03:00]}  c5 {[%clk 0:02:59]} 2. Nf3 {[%clk 0:03:00]}  d6 {[%clk 0:02:56]} 3. Bb5+ {[%clk 0:03:00]}  Nd7 {[%clk 0:02:55]} 4. O-O {[%clk 0:03:00]}  a6 {[%clk 0:02:55]} 5. Bd3 {[%clk 0:02:59]}  Ngf6 {[%clk 0:02:50]} 6. a4 {[%clk 0:02:57]}  g6 {[%clk 0:02:45]} 7. c3 {[%clk 0:02:56]}  Bg7 {[%clk 0:02:45]} 8. a5 {[%clk 0:02:56]}  O-O {[%clk 0:02:45]} 9. Re1 {[%clk 0:02:56]}  e5 {[%clk 0:02:44]} 10. b4 {[%clk 0:02:54]}  cxb4 {[%clk 0:02:41]} 11. cxb4 {[%clk 0:02:54]}  Re8 {[%clk 0:02:39]} 12. Nc3 {[%clk 0:02:54]}  Nf8 {[%clk 0:02:35]} 13. b5 {[%clk 0:02:54]}  Ne6 {[%clk 0:02:30]} 14. Bf1 {[%clk 0:02:53]}  Nd4 {[%clk 0:02:23]} 15. h3 {[%clk 0:02:48]}  Bd7 {[%clk 0:02:08]} 16. Ba3 {[%clk 0:02:40]}  Re6 {[%clk 0:01:59]} 17. Bc4 {[%clk 0:02:38]}  axb5 {[%clk 0:01:54]} 18. Bxe6 {[%clk 0:02:38]}  Bxe6 {[%clk 0:01:55]} 19. Nxd4 {[%clk 0:02:38]}  exd4 {[%clk 0:01:54]} 20. Nxb5 {[%clk 0:02:38]}  d5 {[%clk 0:01:44]} 21. e5 {[%clk 0:02:37]}  Nd7 {[%clk 0:01:37]} 22. Bd6 {[%clk 0:02:35]}  d3 {[%clk 0:01:25]} 23. Nc7 {[%clk 0:02:34]}  Bf5 {[%clk 0:01:23]} 24. Nxa8 {[%clk 0:02:33]}  Qxa8 {[%clk 0:01:24]} 25. Qf3 {[%clk 0:02:29]}  Bh6 {[%clk 0:01:21]} 26. g4 {[%clk 0:02:27]}  Be4 {[%clk 0:01:16]} 27. Rxe4 {[%clk 0:02:27]}  dxe4 {[%clk 0:01:17]} 28. Qxe4 {[%clk 0:02:27]}  Qa6 {[%clk 0:01:15]} 29. Rc1 {[%clk 0:02:21]}  Bxd2 {[%clk 0:01:14]} 30. Rc8+ {[%clk 0:02:21]}  Kg7 {[%clk 0:01:13]} 31. Qd4 {[%clk 0:02:17]}  Bg5 {[%clk 0:01:08]} 32. e6+ {[%clk 0:02:15]}  Bf6 {[%clk 0:01:08]} 33. exd7 {[%clk 0:02:14]}  Bxd4 {[%clk 0:01:07]} 34. d8=Q {[%clk 0:02:14]}  Bxf2+ {[%clk 0:01:05]} 35. Kg2 {[%clk 0:02:13]}  d2 {[%clk 0:01:04]} 36. Qh8+ {[%clk 0:02:11]}  Kh6 {[%clk 0:01:04]} 37. Bf4+ {[%clk 0:02:12]}  g5 {[%clk 0:01:03]} 38. Qf8+ {[%clk 0:02:12]}  Kg6 {[%clk 0:01:03]} 39. Qg8+ {[%clk 0:02:11]}  Kf6 {[%clk 0:01:01]} 40. Qxg5+ {[%clk 0:02:11]}  Ke6 {[%clk 0:01:01]} 41. Qf5+ {[%clk 0:02:10]}  Ke7 {[%clk 0:01:01]} 42. Rc7+ {[%clk 0:02:06]}  Kd8 {[%clk 0:01:00]} 43. Qd7# {[%clk 0:02:07]} 1-0


[Site "https://www.chess.com"]

[Event "Titled Tuesday Blitz February 14 Early 2023"]
[White "Kopczynski, Michal"]
[Black "Rodriguez Fontecha, Marcos"]
[WhiteFideId "1124200"]
[BlackFideId "2256576"]
[WhiteElo "2225"]
[BlackElo "2309"]
[Result "1-0"]
[Round "08"]
[TimeControl "180+2"]
[Date "2023.02.14"]
[WhiteClock "0:00:22"]
[BlackClock "0:00:05"]

1. e4 {[%clk 0:02:59]}  e6 {[%clk 0:03:00]} 2. d4 {[%clk 0:02:59]}  d5 {[%clk 0:03:00]} 3. Nc3 {[%clk 0:02:59]}  h6 {[%clk 0:03:00]} 4. e5 {[%clk 0:02:59]}  c5 {[%clk 0:03:00]} 5. dxc5 {[%clk 0:03:00]}  Bxc5 {[%clk 0:02:59]} 6. f4 {[%clk 0:03:01]}  Nc6 {[%clk 0:02:58]} 7. Nf3 {[%clk 0:03:01]}  Qb6 {[%clk 0:02:48]} 8. Bd3 {[%clk 0:03:00]}  Nge7 {[%clk 0:02:41]} 9. Qe2 {[%clk 0:02:59]}  Bd7 {[%clk 0:02:38]} 10. Bd2 {[%clk 0:02:59]}  Qc7 {[%clk 0:02:30]} 11. O-O-O {[%clk 0:02:55]}  a6 {[%clk 0:02:26]} 12. Kb1 {[%clk 0:02:51]}  Nb4 {[%clk 0:02:26]} 13. g4 {[%clk 0:02:45]}  Nxd3 {[%clk 0:02:25]} 14. Qxd3 {[%clk 0:02:46]}  O-O-O {[%clk 0:02:20]} 15. Nd4 {[%clk 0:02:38]}  h5 {[%clk 0:02:14]} 16. h3 {[%clk 0:02:29]}  Qb6 {[%clk 0:02:06]} 17. Nb3 {[%clk 0:02:27]}  Bb4 {[%clk 0:01:56]} 18. a3 {[%clk 0:02:13]}  Bxc3 {[%clk 0:01:53]} 19. Bxc3 {[%clk 0:02:13]}  Bb5 {[%clk 0:01:50]} 20. Qd2 {[%clk 0:02:07]}  Nc6 {[%clk 0:01:45]} 21. Nd4 {[%clk 0:02:07]}  Rd7 {[%clk 0:01:29]} 22. Nxc6 {[%clk 0:02:03]}  Qxc6 {[%clk 0:01:24]} 23. Qd4 {[%clk 0:01:55]}  Rc7 {[%clk 0:01:20]} 24. f5 {[%clk 0:01:51]}  Qd7 {[%clk 0:01:07]} 25. Qa7 {[%clk 0:01:45]}  Qe8 {[%clk 0:00:39]} 26. Ba5 {[%clk 0:01:39]}  b6 {[%clk 0:00:32]} 27. Qxb6 {[%clk 0:01:31]}  Rb7 {[%clk 0:00:29]} 28. Qc5+ {[%clk 0:01:30]}  Qc6 {[%clk 0:00:27]} 29. Qxc6+ {[%clk 0:01:28]}  Bxc6 {[%clk 0:00:28]} 30. fxe6 {[%clk 0:01:24]}  fxe6 {[%clk 0:00:29]} 31. g5 {[%clk 0:01:24]}  Rf7 {[%clk 0:00:24]} 32. Rhf1 {[%clk 0:01:23]}  Rhf8 {[%clk 0:00:24]} 33. Rxf7 {[%clk 0:01:22]}  Rxf7 {[%clk 0:00:25]} 34. h4 {[%clk 0:01:10]}  Rf4 {[%clk 0:00:24]} 35. Be1 {[%clk 0:01:07]}  Re4 {[%clk 0:00:18]} 36. Bg3 {[%clk 0:01:06]}  Re3 {[%clk 0:00:18]} 37. Rd3 {[%clk 0:01:05]}  Re2 {[%clk 0:00:09]} 38. Rf3 {[%clk 0:00:55]}  Rg2 {[%clk 0:00:05]} 39. Bf2 {[%clk 0:00:51]}  Bb5 {[%clk 0:00:04]} 40. Bc5 {[%clk 0:00:45]}  Kd7 {[%clk 0:00:04]} 41. Rf7+ {[%clk 0:00:44]}  Kc6 {[%clk 0:00:04]} 42. Bd4 {[%clk 0:00:41]}  Be2 {[%clk 0:00:03]} 43. Rxg7 {[%clk 0:00:39]}  Bd1 {[%clk 0:00:04]} 44. Re7 {[%clk 0:00:34]}  Bxc2+ {[%clk 0:00:04]} 45. Kc1 {[%clk 0:00:34]}  Bf5 {[%clk 0:00:04]} 46. Ra7 {[%clk 0:00:29]}  Rc2+ {[%clk 0:00:04]} 47. Kd1 {[%clk 0:00:29]}  Kb5 {[%clk 0:00:04]} 48. Rb7+ {[%clk 0:00:26]}  Ka4 {[%clk 0:00:05]} 49. Rb4+ {[%clk 0:00:22]} 1-0


[Site "https://www.chess.com"]

[Event "Titled Tuesday Blitz February 14 Early 2023"]
[White "Delorme, Axel"]
[Black "Belov, Alexei"]
[WhiteFideId "632023"]
[BlackFideId "4128206"]
[WhiteElo "2483"]
[BlackElo "2421"]
[Result "0-1"]
[Round "08"]
[TimeControl "180+2"]
[Date "2023.02.14"]
[WhiteClock "0:00:10"]
[BlackClock "0:01:20"]

1. e4 {[%clk 0:03:00]}  e6 {[%clk 0:03:00]} 2. d4 {[%clk 0:03:00]}  d5 {[%clk 0:03:00]} 3. Nc3 {[%clk 0:03:01]}  Nf6 {[%clk 0:03:00]} 4. e5 {[%clk 0:03:01]}  Ne4 {[%clk 0:03:00]} 5. Nxe4 {[%clk 0:03:01]}  dxe4 {[%clk 0:03:01]} 6. Bc4 {[%clk 0:03:01]}  a6 {[%clk 0:03:01]} 7. Ne2 {[%clk 0:02:57]}  b5 {[%clk 0:03:01]} 8. Bb3 {[%clk 0:02:58]}  Bb7 {[%clk 0:03:01]} 9. O-O {[%clk 0:02:56]}  c5 {[%clk 0:03:01]} 10. c3 {[%clk 0:02:49]}  Nc6 {[%clk 0:03:01]} 11. Be3 {[%clk 0:02:36]}  Qh4 {[%clk 0:03:00]} 12. a4 {[%clk 0:02:19]}  Rd8 {[%clk 0:02:54]} 13. axb5 {[%clk 0:02:18]}  axb5 {[%clk 0:02:53]} 14. Qc1 {[%clk 0:02:11]}  Be7 {[%clk 0:02:41]} 15. Bc2 {[%clk 0:01:55]}  O-O {[%clk 0:02:27]} 16. Qb1 {[%clk 0:01:49]}  cxd4 {[%clk 0:02:24]} 17. cxd4 {[%clk 0:01:46]}  Nb4 {[%clk 0:02:22]} 18. Ra7 {[%clk 0:01:46]}  Rd7 {[%clk 0:02:22]} 19. Nc3 {[%clk 0:01:24]}  Rc8 {[%clk 0:02:02]} 20. Bxe4 {[%clk 0:01:13]}  Bxe4 {[%clk 0:02:01]} 21. Qxe4 {[%clk 0:01:08]}  Rxa7 {[%clk 0:01:51]} 22. d5 {[%clk 0:00:27]}  Qxe4 {[%clk 0:01:29]} 23. Nxe4 {[%clk 0:00:28]}  Ra2 {[%clk 0:01:29]} 24. d6 {[%clk 0:00:27]}  Bd8 {[%clk 0:01:29]} 25. Bg5 {[%clk 0:00:16]}  Bxg5 {[%clk 0:01:22]} 26. Nxg5 {[%clk 0:00:15]}  Rca8 {[%clk 0:01:20]} 27. f4 {[%clk 0:00:10]}  Ra1 {[%clk 0:01:20]} 0-1


[Site "https://www.chess.com"]

[Event "Titled Tuesday Blitz February 14 Early 2023"]
[White "Alinasab, Mobina"]
[Black "Iljin, Timofey"]
[WhiteFideId "12528897"]
[BlackFideId "14110180"]
[WhiteElo "2347"]
[BlackElo "2329"]
[Result "1/2-1/2"]
[Round "08"]
[TimeControl "180+2"]
[Date "2023.02.14"]
[WhiteClock "0:00:05"]
[BlackClock "0:00:05"]

1. e4 {[%clk 0:03:00]}  e5 {[%clk 0:02:55]} 2. Nf3 {[%clk 0:03:00]}  Nc6 {[%clk 0:02:55]} 3. Bb5 {[%clk 0:03:00]}  a6 {[%clk 0:02:56]} 4. Ba4 {[%clk 0:03:01]}  Nf6 {[%clk 0:02:56]} 5. O-O {[%clk 0:03:01]}  b5 {[%clk 0:02:57]} 6. Bb3 {[%clk 0:03:00]}  Bc5 {[%clk 0:02:57]} 7. c3 {[%clk 0:03:00]}  d6 {[%clk 0:02:57]} 8. d4 {[%clk 0:03:01]}  Bb6 {[%clk 0:02:57]} 9. a4 {[%clk 0:03:01]}  Bg4 {[%clk 0:02:56]} 10. Be3 {[%clk 0:02:58]}  exd4 {[%clk 0:02:42]} 11. cxd4 {[%clk 0:02:56]}  Bxf3 {[%clk 0:02:40]} 12. gxf3 {[%clk 0:02:55]}  O-O {[%clk 0:02:38]} 13. Nc3 {[%clk 0:02:54]}  Qd7 {[%clk 0:02:34]} 14. axb5 {[%clk 0:02:53]}  axb5 {[%clk 0:02:32]} 15. Nxb5 {[%clk 0:02:45]}  Qh3 {[%clk 0:02:30]} 16. Rxa8 {[%clk 0:02:41]}  Rxa8 {[%clk 0:02:30]} 17. Kh1 {[%clk 0:02:41]}  Ra5 {[%clk 0:01:50]} 18. Bc4 {[%clk 0:02:28]}  Qh5 {[%clk 0:01:47]} 19. Nc3 {[%clk 0:02:21]}  Ne7 {[%clk 0:01:31]} 20. Rg1 {[%clk 0:02:19]}  d5 {[%clk 0:01:28]} 21. Bd3 {[%clk 0:02:10]}  dxe4 {[%clk 0:01:28]} 22. fxe4 {[%clk 0:02:10]}  Qxd1 {[%clk 0:01:09]} 23. Nxd1 {[%clk 0:02:05]}  Nc6 {[%clk 0:01:06]} 24. Bh6 {[%clk 0:01:39]}  g6 {[%clk 0:01:00]} 25. d5 {[%clk 0:01:39]}  Ne5 {[%clk 0:00:53]} 26. Bd2 {[%clk 0:01:24]}  Nxd3 {[%clk 0:00:47]} 27. Bxa5 {[%clk 0:01:24]}  Bxa5 {[%clk 0:00:48]} 28. f3 {[%clk 0:01:21]}  Nh5 {[%clk 0:00:43]} 29. Rg2 {[%clk 0:01:20]}  Nhf4 {[%clk 0:00:43]} 30. Rc2 {[%clk 0:01:19]}  Kf8 {[%clk 0:00:39]} 31. Nf2 {[%clk 0:01:15]}  Nxf2+ {[%clk 0:00:37]} 32. Rxf2 {[%clk 0:01:16]}  Ke7 {[%clk 0:00:38]} 33. Rc2 {[%clk 0:01:15]}  Kd6 {[%clk 0:00:34]} 34. Kg1 {[%clk 0:01:16]}  Ke5 {[%clk 0:00:33]} 35. Kf2 {[%clk 0:01:15]}  Kd4 {[%clk 0:00:33]} 36. Rc6 {[%clk 0:01:11]}  Nd3+ {[%clk 0:00:25]} 37. Ke2 {[%clk 0:01:11]}  Nxb2 {[%clk 0:00:24]} 38. Rf6 {[%clk 0:01:11]}  Nd3 {[%clk 0:00:16]} 39. Rxf7 {[%clk 0:01:10]}  h5 {[%clk 0:00:16]} 40. Rf6 {[%clk 0:01:01]}  g5 {[%clk 0:00:16]} 41. Rf5 {[%clk 0:00:58]}  Nf4+ {[%clk 0:00:11]} 42. Kf2 {[%clk 0:00:57]}  Bb6 {[%clk 0:00:08]} 43. h4 {[%clk 0:00:47]}  Kd3+ {[%clk 0:00:06]} 44. Kf1 {[%clk 0:00:40]}  Ne2 {[%clk 0:00:02]} 45. Rxg5 {[%clk 0:00:36]}  Ke3 {[%clk 0:00:02]} 46. Kg2 {[%clk 0:00:29]}  Nf4+ {[%clk 0:00:03]} 47. Kg3 {[%clk 0:00:28]}  Ba5 {[%clk 0:00:03]} 48. Rg7 {[%clk 0:00:17]}  Be1+ {[%clk 0:00:04]} 49. Kh2 {[%clk 0:00:18]}  Kxf3 {[%clk 0:00:04]} 50. Rxc7 {[%clk 0:00:14]}  Bxh4 {[%clk 0:00:04]} 51. Rf7 {[%clk 0:00:13]}  Bg3+ {[%clk 0:00:04]} 52. Kh1 {[%clk 0:00:12]}  Kxe4 {[%clk 0:00:03]} 53. d6 {[%clk 0:00:12]}  Ne6 {[%clk 0:00:03]} 54. d7 {[%clk 0:00:12]}  Kd5 {[%clk 0:00:02]} 55. Re7 {[%clk 0:00:12]}  Bc7 {[%clk 0:00:02]} 56. Kg2 {[%clk 0:00:11]}  h4 {[%clk 0:00:02]} 57. Kh3 {[%clk 0:00:10]}  Nf4+ {[%clk 0:00:02]} 58. Kg4 {[%clk 0:00:10]}  h3 {[%clk 0:00:02]} 59. Rh7 {[%clk 0:00:09]}  Ne6 {[%clk 0:00:01]} 60. Re7 {[%clk 0:00:08]}  Kd6 {[%clk 0:00:02]} 61. Rh7 {[%clk 0:00:08]}  Nc5 {[%clk 0:00:01]} 62. d8=Q+ {[%clk 0:00:07]}  Bxd8 {[%clk 0:00:01]} 63. Rxh3 {[%clk 0:00:08]}  Ne6 {[%clk 0:00:02]} 64. Kf5 {[%clk 0:00:08]}  Nc7 {[%clk 0:00:02]} 65. Rd3+ {[%clk 0:00:08]}  Ke7 {[%clk 0:00:02]} 66. Ke5 {[%clk 0:00:08]}  Ne6 {[%clk 0:00:02]} 67. Rh3 {[%clk 0:00:08]}  Bc7+ {[%clk 0:00:02]} 68. Kf5 {[%clk 0:00:07]}  Nd4+ {[%clk 0:00:02]} 69. Ke4 {[%clk 0:00:08]}  Ne6 {[%clk 0:00:03]} 70. Rh7+ {[%clk 0:00:07]}  Kd6 {[%clk 0:00:03]} 71. Rh1 {[%clk 0:00:07]}  Nc5+ {[%clk 0:00:03]} 72. Kd4 {[%clk 0:00:08]}  Nd7 {[%clk 0:00:04]} 73. Kc4 {[%clk 0:00:08]}  Bb6 {[%clk 0:00:04]} 74. Kb5 {[%clk 0:00:08]}  Bd4 {[%clk 0:00:03]} 75. Rd1 {[%clk 0:00:09]}  Ke5 {[%clk 0:00:04]} 76. Kc4 {[%clk 0:00:09]}  Nb6+ {[%clk 0:00:05]} 77. Kd3 {[%clk 0:00:10]}  Nd5 {[%clk 0:00:05]} 78. Re1+ {[%clk 0:00:10]}  Ne3 {[%clk 0:00:05]} 79. Rh1 {[%clk 0:00:10]}  Nf5 {[%clk 0:00:05]} 80. Rh5 {[%clk 0:00:10]}  Bb2 {[%clk 0:00:04]} 81. Rh8 {[%clk 0:00:08]}  Bd4 {[%clk 0:00:04]} 82. Re8+ {[%clk 0:00:08]}  Kf4 {[%clk 0:00:04]} 83. Re4+ {[%clk 0:00:08]}  Kg5 {[%clk 0:00:05]} 84. Re8 {[%clk 0:00:08]}  Bf6 {[%clk 0:00:05]} 85. Ra8 {[%clk 0:00:07]}  Nd6 {[%clk 0:00:05]} 86. Ra6 {[%clk 0:00:06]}  Nf7 {[%clk 0:00:05]} 87. Ke4 {[%clk 0:00:06]}  Kg6 {[%clk 0:00:05]} 88. Re6 {[%clk 0:00:06]}  Ng5+ {[%clk 0:00:04]} 89. Kd5 {[%clk 0:00:06]}  Kf5 {[%clk 0:00:05]} 90. Rxf6+ {[%clk 0:00:05]}  Kxf6 {[%clk 0:00:05]} 1/2-1/2


[Site "https://www.chess.com"]

[Event "Titled Tuesday Blitz February 14 Early 2023"]
[White "Gimenez Aguirre, Alejo Ismael"]
[Black "Ansh M Shah"]
[WhiteFideId "32041667"]
[BlackFideId "25033379"]
[WhiteElo "2273"]
[BlackElo "2171"]
[Result "1-0"]
[Round "08"]
[TimeControl "180+2"]
[Date "2023.02.14"]
[WhiteClock "0:00:14"]
[BlackClock "0:00:02"]

1. e4 {[%clk 0:02:58]}  c6 {[%clk 0:02:59]} 2. Nc3 {[%clk 0:02:57]}  d5 {[%clk 0:03:00]} 3. d4 {[%clk 0:02:56]}  dxe4 {[%clk 0:02:59]} 4. Nxe4 {[%clk 0:02:56]}  Bf5 {[%clk 0:03:00]} 5. Ng3 {[%clk 0:02:56]}  Bg6 {[%clk 0:03:01]} 6. h4 {[%clk 0:02:57]}  h6 {[%clk 0:03:02]} 7. h5 {[%clk 0:02:57]}  Bh7 {[%clk 0:03:02]} 8. Nf3 {[%clk 0:02:58]}  Nd7 {[%clk 0:03:01]} 9. Bd3 {[%clk 0:02:58]}  Bxd3 {[%clk 0:03:01]} 10. Qxd3 {[%clk 0:02:59]}  e6 {[%clk 0:03:02]} 11. c3 {[%clk 0:02:59]}  Ngf6 {[%clk 0:03:03]} 12. Ne4 {[%clk 0:02:59]}  Be7 {[%clk 0:03:04]} 13. Bf4 {[%clk 0:02:59]}  Nxe4 {[%clk 0:03:03]} 14. Qxe4 {[%clk 0:02:59]}  Nf6 {[%clk 0:03:03]} 15. Qc2 {[%clk 0:02:59]}  O-O {[%clk 0:03:04]} 16. O-O-O {[%clk 0:02:59]}  Qd5 {[%clk 0:03:05]} 17. a3 {[%clk 0:02:59]}  a5 {[%clk 0:02:35]} 18. Be5 {[%clk 0:02:53]}  b5 {[%clk 0:02:35]} 19. Nd2 {[%clk 0:02:47]}  b4 {[%clk 0:02:31]} 20. c4 {[%clk 0:02:37]}  Qxg2 {[%clk 0:02:31]} 21. Rdg1 {[%clk 0:02:27]}  Qxf2 {[%clk 0:02:31]} 22. Rf1 {[%clk 0:02:27]}  Qe2 {[%clk 0:02:30]} 23. Re1 {[%clk 0:02:27]}  Qg4 {[%clk 0:02:26]} 24. Reg1 {[%clk 0:02:24]}  Qf5 {[%clk 0:02:26]} 25. Qb3 {[%clk 0:02:21]}  bxa3 {[%clk 0:02:24]} 26. Rf1 {[%clk 0:02:20]}  axb2+ {[%clk 0:02:23]} 27. Qxb2 {[%clk 0:02:20]}  Qd3 {[%clk 0:02:19]} 28. Rf3 {[%clk 0:02:20]}  Qe2 {[%clk 0:02:18]} 29. Rg1 {[%clk 0:02:11]}  Kh8 {[%clk 0:02:02]} 30. Rfg3 {[%clk 0:01:59]}  Rg8 {[%clk 0:01:59]} 31. R3g2 {[%clk 0:01:32]}  Qxh5 {[%clk 0:01:56]} 32. Qb7 {[%clk 0:01:10]}  Ba3+ {[%clk 0:01:44]} 33. Kb1 {[%clk 0:01:06]}  Qf5+ {[%clk 0:01:13]} 34. Ka2 {[%clk 0:01:05]}  Bb4 {[%clk 0:01:14]} 35. Nb3 {[%clk 0:00:47]}  c5 {[%clk 0:01:01]} 36. Qxf7 {[%clk 0:00:42]}  a4 {[%clk 0:00:45]} 37. Na1 {[%clk 0:00:41]}  Raf8 {[%clk 0:00:27]} 38. Qb7 {[%clk 0:00:35]}  a3 {[%clk 0:00:05]} 39. Rxg7 {[%clk 0:00:19]}  Qf2+ {[%clk 0:00:05]} 40. Kb3 {[%clk 0:00:20]}  Qb2+ {[%clk 0:00:05]} 41. Ka4 {[%clk 0:00:20]}  Ra8+ {[%clk 0:00:05]} 42. Kb5 {[%clk 0:00:21]}  Bc3+ {[%clk 0:00:02]} 43. Kc6 {[%clk 0:00:18]}  Rgc8+ {[%clk 0:00:02]} 44. Rc7 {[%clk 0:00:14]} 1-0


[Site "https://www.chess.com"]